[Event "TUR-chT Superleague 2018"]
[Site "Ankara"]
[Date "2018.07.28"]
[Round "4"]
[White "Yilmazyerli, Mert"]
[Black "Selbes, Tarik"]
[Result "1-0"]
[ECO "E63"]
[WhiteElo "2491"]
[BlackElo "2281"]
[Annotator "ChessBase"]
[PlyCount "59"]
[EventDate "2018.07.25"]
[EventType "team-tourn"]
[EventCountry "TUR"]
[SourceTitle "playchess.com"]
[Source "ChessBase"]
[SourceQuality "1"]
[TimeControl "40/5400+30:1800+30"]

1. d4 {[%emt 0:00:30]} Nf6 {[%emt 0:01:00]} 2. Nf3 {[%emt 0:00:00]} g6 {[%emt 0:00:30]} 3. g3 {[%emt 0:00:00]} Bg7 {[%emt 0:00:30]} 4. Bg2 {[%emt 0:00:00]} O-O {[%emt 0:00:30]} 5. O-O {[%emt 0:00:00]} d6 {[%emt 0:00:00]} 6. c4 {[%emt 0:00:30]} Nc6 {[%emt 0:00:00]} 7. Nc3 {[%emt 0:00:30]} a6 {[%emt 0:00:30]} 8. Bf4 {[%emt 0:00:00]} Rb8 {[%emt 0:01:30]} 9. Rc1 {[%emt 0:01:00]} h6 {[%emt 0:01:30]} 10. b3 {[%emt 0:00:30]} Re8 {[%emt 0:03:30]} 11. d5 {[%emt 0:03:30]} e5 {[%emt 0:00:30]} 12. dxc6 {[%emt 0:02:30]} exf4 {[%emt 0:00:30]} 13. cxb7 {[%emt 0:00:30]} Bxb7 {[%emt 0:00:30]} 14. gxf4 {[%emt 0:00:00]} Ne4 {[%emt 0:16:30]} 15. Nxe4 {[%emt 0:01:00]} Bxe4 {[%emt 0:00:30]} 16. Qd2 {[%emt 0:00:30]} Qf6 {[%emt 0:04:30]} 17. e3 {[%emt 0:13:30]} g5 {[%emt 0:04:30]} 18. fxg5 {[%emt 0:07:30]} hxg5 {[%emt 0:01:30]} 19. Nd4 {[%emt 0:06:30]} Bxg2 {[%emt 0:23:30]} 20. Kxg2 {[%emt 0:01:30]} g4 {[%emt 0:08:30]} 21. Rg1 {[%emt 0:14:30]} Re4 {[%emt 0:10:30]} 22. Kh1 {[%emt 0:13:30]} Rbe8 {[%emt 0:02:15]} 23. Rg2 {[%emt 0:03:30]} R8e5 {[%emt 0:05:52]} 24. Rcg1 {[%emt 0:00:30]} Rh5 {[%emt 0:03:22]} 25. f4 {[%emt 0:03:30]} gxf3 {[%emt 0:10:19]} 26. Rxg7+ {[%emt 0:00:30]} Kf8 {[%emt 0:00:00]} 27. Rg8+ {[%emt 0:07:30]} Ke7 {[%emt 0:00:00]} 28. R8g3 {[%emt 0:01:06]} f2 {[%emt 0:00:39]} 29. Rf1 {[%emt 0:00:05]} Qh4 {[%emt 0:01:00]} 30. Qxf2 {[%emt 0:00:44]} 1-0

[Event "TUR-chT Superleague 2018"]
[Site "Ankara"]
[Date "2018.07.28"]
[Round "4"]
[White "Asadli, Vugar"]
[Black "Kevlishvili, Robby"]
[Result "0-1"]
[ECO "B90"]
[WhiteElo "2478"]
[BlackElo "2502"]
[Annotator "ChessBase"]
[PlyCount "66"]
[EventDate "2018.07.25"]
[EventType "team-tourn"]
[EventCountry "TUR"]
[SourceTitle "playchess.com"]
[Source "ChessBase"]
[SourceQuality "1"]
[TimeControl "40/5400+30:1800+30"]

1. e4 {[%emt 0:00:30]} c5 {[%emt 0:01:00]} 2. Nf3 {[%emt 0:00:30]} d6 {[%emt 0:00:30]} 3. d4 {[%emt 0:00:30]} cxd4 {[%emt 0:00:30]} 4. Nxd4 {[%emt 0:00:30]} Nf6 {[%emt 0:00:30]} 5. Nc3 {[%emt 0:00:30]} a6 {[%emt 0:00:00]} 6. h3 {[%emt 0:00:00]} g6 {[%emt 0:00:00]} 7. g4 {[%emt 0:00:00]} Bg7 {[%emt 0:00:30]} 8. Bg2 {[%emt 0:00:00]} h5 {[%emt 0:00:30]} 9. g5 {[%emt 0:00:00]} Nfd7 {[%emt 0:00:30]} 10. a4 {[%emt 0:00:00]} Nc6 {[%emt 0:02:30]} 11. Nde2 {[%emt 0:00:00]} Rb8 {[%emt 0:03:30]} 12. f4 {[%emt 0:05:30]} O-O {[%emt 0:05:30]} 13. O-O {[%emt 0:02:30]} b5 {[%emt 0:02:30]} 14. axb5 {[%emt 0:01:30]} axb5 {[%emt 0:00:30]} 15. f5 {[%emt 0:00:30]} Nce5 {[%emt 0:23:30]} 16. Nf4 {[%emt 0:05:30]} Nb6 {[%emt 0:07:30]} 17. Nce2 {[%emt 0:18:30]} Kh7 {[%emt 0:17:30]} 18. Nd4 {[%emt 0:06:30]} Rh8 {[%emt 0:00:30]} 19. b3 {[%emt 0:04:30]} Bd7 {[%emt 0:04:30]} 20. Be3 {[%emt 0:00:30]} Qc7 {[%emt 0:03:30]} 21. Ra6 {[%emt 0:10:30]} Qb7 {[%emt 0:06:21]} 22. fxg6+ {[%emt 0:06:30]} fxg6 {[%emt 0:00:06]} 23. Nxg6 {[%emt 0:05:30]} Kxg6 {[%emt 0:07:55]} 24. Nf5 {[%emt 0:09:30]} Nc8 {[%emt 0:00:12]} 25. Nxe7+ {[%emt 0:05:10]} Nxe7 {[%emt 0:00:07]} 26. Qxd6+ {[%emt 0:00:57]} Kh7 {[%emt 0:00:05]} 27. Rf6 {[%emt 0:04:19]} Bxf6 {[%emt 0:04:33]} 28. gxf6 {[%emt 0:00:16]} N7g6 {[%emt 0:00:50]} 29. f7 {[%emt 0:00:42]} Rbd8 {[%emt 0:04:21]} 30. Qf6 {[%emt 0:00:48]} Rhf8 {[%emt 0:00:28]} 31. Qg5 {[%emt 0:00:35]} Rxf7 {[%emt 0:01:30]} 32. Qxh5+ {[%emt 0:00:30]} Kg8 {[%emt 0:00:30]} 33. Rb6 {[%emt 0:00:00]} Qc7 {[%emt 0:00:00]} 0-1

[Event "TUR-chT Superleague 2018"]
[Site "Ankara"]
[Date "2018.07.28"]
[Round "4"]
[White "Mammadzada, Gunay"]
[Black "Badelka, Olga"]
[Result "1-0"]
[ECO "B32"]
[WhiteElo "2426"]
[BlackElo "2407"]
[Annotator "NA"]
[PlyCount "155"]
[EventDate "2018.07.25"]
[EventType "team-tourn"]
[EventCountry "TUR"]
[SourceTitle "playchess.com"]
[Source "ChessBase"]
[SourceQuality "1"]
[TimeControl "40/5400+30:1800+30"]

1. e4 c5 2. Nf3 Nc6 3. d4 cxd4 4. Nxd4 e5 5. Nb5 d6 6. c4 Be7 7. N1c3 a6 8. Na3 f5 9. exf5 Bxf5 10. Bd3 Be6 11. O-O Nf6 12. Bg5 O-O 13. Nc2 Ng4 14. Bd2 Bg5 15. Ne4 Bxd2 16. Qxd2 Bf5 17. f3 Bxe4 18. Bxe4 Nf6 19. b3 Qb6+ 20. Kh1 Rad8 21. Rad1 g6 22. Rfe1 Kg7 23. Re2 Ne7 24. Qe1 Qc7 25. Bd3 Nc6 26. Rc1 Qb6 27. Ne3 Nd4 28. Rd2 Qa5 29. Nc2 Nc6 30. Rcd1 d5 31. cxd5 Rxd5 32. Ne3 Rd4 33. Nc4 Qd5 34. Be4 Nxe4 35. Rxd4 exd4 36. fxe4 Qe6 37. h3 b5 38. Nd2 Ne5 39. Nf1 Qf6 40. Nh2 Rd8 41. Qf1 d3 42. Kg1 Qc6 43. Qf4 Qc5+ 44. Qf2 Qc2 45. Rf1 Qxf2+ 46. Kxf2 Rc8 47. Ke3 Rc2 48. Rf2 Nc6 49. Rd2 {[%emt 2:23:04]} Kf6 {[%emt 2:24:24]} 50. Nf3 {[%emt 0:00:30]} Rc3 {[%emt 0:00:30]} 51. Ne1 {[%emt 0:00:30]} Nb4 {[%emt 0:00:30]} 52. Nxd3 {[%emt 0:00:30]} Nxd3 {[%emt 0:00:30]} 53. Rxd3 {[%emt 0:00:30]} Rc6 {[%emt 0:00:30]} 54. h4 {[%emt 0:00:30]} Ke6 {[%emt 0:00:30]} 55. g3 {[%emt 0:00:30]} Rc2 {[%emt 0:00:30]} 56. a3 {[%emt 0:00:30]} Ke5 {[%emt 0:00:30]} 57. Rd5+ {[%emt 0:00:30]} Ke6 {[%emt 0:00:30]} 58. Rd2 {[%emt 0:00:30]} Rc1 {[%emt 0:00:30]} 59. Rd3 {[%emt 0:00:30]} Ke5 {[%emt 0:00:30]} 60. Rd5+ {[%emt 0:00:30]} Ke6 {[%emt 0:00:30]} 61. a4 {[%emt 0:00:30]} Rb1 {[%emt 0:00:30]} 62. Rd3 {[%emt 0:00:30]} bxa4 {[%emt 0:00:30]} 63. bxa4 {[%emt 0:00:30]} Ra1 {[%emt 0:00:30]} 64. Rd4 {[%emt 0:00:30]} h6 {[%emt 0:00:30]} 65. Kf4 {[%emt 0:00:30]} Rf1+ {[%emt 0:00:30]} 66. Kg4 {[%emt 0:00:30]} Ra1 {[%emt 0:00:30]} 67. Rb4 {[%emt 0:00:30]} Ke5 {[%emt 0:00:30]} 68. Rb6 {[%emt 0:00:07]} h5+ {[%emt 0:00:33]} 69. Kg5 {[%emt 0:00:06]} Rxa4 {[%emt 0:00:27]} 70. Rxg6 {[%emt 0:00:06]} Rxe4 {[%emt 0:00:21]} 71. Kxh5 {[%emt 0:00:13]} Ra4 {[%emt 0:00:43]} 72. g4 {[%emt 0:00:04]} Kf4 {[%emt 0:00:19]} 73. Rc6 {[%emt 0:00:34]} a5 {[%emt 0:00:38]} 74. g5 {[%emt 0:00:10]} Ra1 {[%emt 0:00:32]} 75. g6 {[%emt 0:00:15]} Kf5 {[%emt 0:00:29]} 76. Kh6 {[%emt 0:00:14]} a4 {[%emt 0:00:25]} 77. g7 {[%emt 0:00:18]} Rg1 {[%emt 0:00:04]} 78. Kh7 {[%emt 0:00:34]} 1-0

[Event "TUR-chT Superleague 2018"]
[Site "Ankara"]
[Date "2018.07.28"]
[Round "4"]
[White "Nechaeva, Marina"]
[Black "Unuk, Laura"]
[Result "1/2-1/2"]
[ECO "E35"]
[WhiteElo "2410"]
[BlackElo "2355"]
[Annotator "NA RC"]
[PlyCount "115"]
[EventDate "2018.07.25"]
[EventType "team-tourn"]
[EventCountry "TUR"]
[SourceTitle "playchess.com"]
[Source "ChessBase"]
[SourceQuality "1"]
[TimeControl "40/5400+30:1800+30"]

1. d4 {[%emt 0:00:30]} Nf6 {[%emt 0:01:00]} 2. c4 {[%emt 0:00:30]} e6 {[%emt 0:00:30]} 3. Nc3 {[%emt 0:00:00]} Bb4 {[%emt 0:00:30]} 4. Qc2 {[%emt 0:00:00]} d5 {[%emt 0:00:30]} 5. cxd5 {[%emt 0:00:00]} exd5 {[%emt 0:00:00]} 6. Bg5 {[%emt 0:00:00]} h6 {[%emt 0:00:00]} 7. Bh4 {[%emt 0:00:00]} O-O {[%emt 0:01:30]} 8. e3 {[%emt 0:00:00]} Be6 {[%emt 0:00:00]} 9. a3 {[%emt 0:06:30]} Be7 {[%emt 0:01:00]} 10. Bd3 {[%emt 0:01:30]} c5 {[%emt 0:03:30]} 11. Nf3 {[%emt 0:11:30]} Nc6 {[%emt 0:07:30]} 12. dxc5 {[%emt 0:08:30]} d4 {[%emt 0:07:30]} 13. Bxf6 {[%emt 0:01:30]} Bxf6 {[%emt 0:01:30]} 14. Ne4 {[%emt 0:00:00]} dxe3 {[%emt 0:01:30]} 15. Nxf6+ {[%emt 0:03:00]} Qxf6 {[%emt 0:00:00]} 16. fxe3 {[%emt 0:16:30]} Ne5 {[%emt 0:01:00]} 17. O-O {[%emt 0:01:30]} Nxd3 {[%emt 0:05:30]} 18. Qxd3 {[%emt 0:00:00]} Rad8 {[%emt 0:02:30]} 19. Nd4 {[%emt 0:01:00]} Qe5 {[%emt 0:01:30]} 20. b4 {[%emt 0:01:30]} Bd5 {[%emt 0:08:30]} 21. Rad1 {[%emt 0:06:30]} Be4 {[%emt 0:04:30]} 22. Qe2 {[%emt 0:00:30]} Rde8 {[%emt 0:02:30]} 23. Qf2 {[%emt 0:05:30]} f5 {[%emt 0:03:30]} 24. Nb5 {[%emt 0:03:30]} Re6 {[%emt 0:07:30]} 25. Rd6 {[%emt 0:11:30]} Rff6 {[%emt 0:06:30]} 26. Rxe6 {[%emt 0:02:44]} Qxe6 {[%emt 0:02:30]} 27. Nd6 {[%emt 0:04:10]} Bc6 {[%emt 0:02:30]} 28. Qd2 {[%emt 0:02:11]} b6 {[%emt 0:12:07]} 29. Rf2 {[%emt 0:02:38]} bxc5 {[%emt 0:00:46]} 30. bxc5 {[%emt 0:00:02]} Kh8 {[%emt 0:01:33]} 31. Qd3 {[%emt 0:03:30]} Qe5 {[%emt 0:02:18]} 32. Qd4 {[%emt 0:00:15]} Qe6 {[%emt 0:00:02]} 33. h3 {[%emt 0:01:23]} Qb3 {[%emt 0:03:34]} 34. Qe5 {[%emt 0:02:02]} Re6 {[%emt 0:03:30]} 35. Qxf5 {[%emt 0:00:51]} Qxe3 {[%emt 0:00:09]} 36. Qf8+ {[%emt 0:02:31]} Kh7 {[%emt 0:00:04]} 37. Nf5 {[%emt 0:02:04]} Qc1+ {[%emt 0:03:06]} 38. Kh2 {[%emt 0:00:24]} Qc3 {[%emt 0:02:08]} 39. Nh4 {[%emt 0:02:12]} Qe5+ {[%emt 0:00:47]} 40. Kg1 {[%emt 0:00:00]} Qe1+ {[%emt 0:03:26]} 41. Kh2 {[%emt 0:01:03]} Qe5+ {[%emt 0:02:30]} 42. Kg1 {[%emt 0:00:30]} Be4 {[%emt 0:13:24]} 43. Nf5 {[%emt 0:06:30]} Rg6 {[%emt 0:03:38]} 44. Nd6 {[%emt 0:08:10]} Bxg2 {[%emt 0:06:06]} 45. Qh8+ {[%emt 0:00:30]} Kxh8 {[%emt 0:00:30]} 46. Nf7+ {[%emt 0:00:30]} Kg8 {[%emt 0:00:00]} 47. Nxe5 {[%emt 0:00:00]} Re6 {[%emt 0:00:23]} 48. Kxg2 {[%emt 0:00:43]} Rxe5 {[%emt 0:00:30]} 49. Rc2 {[%emt 0:00:00]} Re7 {[%emt 0:00:18]} 50. Kf3 {[%emt 0:04:29]} Kf7 {[%emt 0:00:35]} 51. Rc4 {[%emt 0:00:37]} Rc7 {[%emt 0:03:02]} 52. Ke4 {[%emt 0:00:13]} Ke6 {[%emt 0:00:00]} 53. h4 {[%emt 0:06:36]} g5 {[%emt 0:01:38]} 54. hxg5 {[%emt 0:00:30]} hxg5 {[%emt 0:00:00]} 55. Ra4 {[%emt 0:00:00]} Rxc5 {[%emt 0:01:15]} 56. Ra6+ {[%emt 0:00:19]} Kd7 {[%emt 0:00:30]} 57. Rxa7+ {[%emt 0:00:00]} Kc6 {[%emt 0:00:00]} 58. Rg7 {[%emt 0:00:00]} 1/2-1/2

[Event "TUR-chT Superleague 2018"]
[Site "Ankara"]
[Date "2018.07.28"]
[Round "4"]
[White "Soysal, Serkan"]
[Black "Tofan, Ibrahim"]
[Result "1-0"]
[ECO "D40"]
[WhiteElo "2406"]
[BlackElo "2169"]
[Annotator "NA"]
[PlyCount "115"]
[EventDate "2018.07.25"]
[EventType "team-tourn"]
[EventCountry "TUR"]
[SourceTitle "playchess.com"]
[Source "ChessBase"]
[SourceQuality "1"]
[TimeControl "40/5400+30:1800+30"]

1. Nf3 {[%emt 0:00:30]} Nf6 {[%emt 0:01:00]} 2. c4 {[%emt 0:00:30]} c5 {[%emt 0:00:30]} 3. Nc3 {[%emt 0:00:00]} Nc6 {[%emt 0:00:00]} 4. e3 {[%emt 0:00:00]} e6 {[%emt 0:05:00]} 5. d4 {[%emt 0:00:30]} d5 {[%emt 0:04:30]} 6. a3 {[%emt 0:01:30]} dxc4 {[%emt 0:04:30]} 7. Bxc4 {[%emt 0:00:30]} a6 {[%emt 0:01:30]} 8. O-O {[%emt 0:10:30]} Be7 {[%emt 0:03:30]} 9. dxc5 {[%emt 0:03:30]} Qxd1 {[%emt 0:01:30]} 10. Rxd1 {[%emt 0:00:00]} Bxc5 {[%emt 0:00:00]} 11. b4 {[%emt 0:01:00]} Be7 {[%emt 0:01:00]} 12. Bb2 {[%emt 0:02:30]} O-O {[%emt 0:01:30]} 13. Be2 {[%emt 0:15:30]} b5 {[%emt 0:03:30]} 14. Nd2 {[%emt 0:07:30]} Bb7 {[%emt 0:01:30]} 15. Nb3 {[%emt 0:00:30]} Rac8 {[%emt 0:07:30]} 16. Rac1 {[%emt 0:02:30]} Rfd8 {[%emt 0:03:30]} 17. Rxd8+ {[%emt 0:00:30]} Nxd8 {[%emt 0:00:30]} 18. Na5 {[%emt 0:10:30]} Ba8 {[%emt 0:09:30]} 19. Na2 {[%emt 0:07:30]} Rxc1+ {[%emt 0:00:30]} 20. Nxc1 {[%emt 0:00:00]} Nd7 {[%emt 0:00:30]} 21. Nd3 {[%emt 0:01:00]} f6 {[%emt 0:06:30]} 22. Bc3 {[%emt 0:03:30]} Bd5 {[%emt 0:08:30]} 23. f3 {[%emt 0:00:30]} e5 {[%emt 0:06:30]} 24. e4 {[%emt 0:01:30]} Be6 {[%emt 0:00:30]} 25. Nb2 {[%emt 0:05:30]} Nb8 {[%emt 0:06:30]} 26. Bd2 {[%emt 0:05:30]} Bd6 {[%emt 0:02:30]} 27. Nd3 {[%emt 0:10:10]} Bc7 {[%emt 0:04:17]} 28. Nc5 {[%emt 0:00:02]} Bb6 {[%emt 0:05:39]} 29. Kf1 {[%emt 0:00:18]} Bxc5 {[%emt 0:00:51]} 30. bxc5 {[%emt 0:00:02]} Nbc6 {[%emt 0:00:51]} 31. Kf2 {[%emt 0:04:07]} Nxa5 {[%emt 0:02:56]} 32. Bxa5 {[%emt 0:00:30]} Nc6 {[%emt 0:00:30]} 33. Bc3 {[%emt 0:00:00]} Kf7 {[%emt 0:02:05]} 34. Ke3 {[%emt 0:00:00]} Bb3 {[%emt 0:00:43]} 35. f4 {[%emt 0:00:24]} Ke7 {[%emt 0:01:26]} 36. g3 {[%emt 0:00:27]} Ba4 {[%emt 0:01:29]} 37. h4 {[%emt 0:03:50]} h6 {[%emt 0:00:51]} 38. g4 {[%emt 0:01:01]} Bc2 {[%emt 0:00:47]} 39. g5 {[%emt 0:01:10]} Bb3 {[%emt 0:01:58]} 40. gxh6 {[%emt 0:04:30]} gxh6 {[%emt 0:00:37]} 41. h5 {[%emt 0:00:59]} Bc2 {[%emt 0:05:30]} 42. fxe5 {[%emt 0:13:59]} fxe5 {[%emt 0:05:30]} 43. Be1 {[%emt 0:00:10]} Nd4 {[%emt 0:01:30]} 44. Bh4+ {[%emt 0:00:09]} Kf7 {[%emt 0:10:44]} 45. Bg4 {[%emt 0:00:56]} Bb3 {[%emt 0:01:12]} 46. Bc8 {[%emt 0:09:54]} a5 {[%emt 0:02:10]} 47. Bb7 {[%emt 0:00:01]} b4 {[%emt 0:05:26]} 48. axb4 {[%emt 0:01:56]} a4 {[%emt 0:00:34]} 49. c6 {[%emt 0:00:04]} Nb5 {[%emt 0:02:59]} 50. Kd2 {[%emt 0:02:06]} a3 {[%emt 0:00:37]} 51. Kc1 {[%emt 0:00:50]} a2 {[%emt 0:01:50]} 52. Kb2 {[%emt 0:00:01]} Nd4 {[%emt 0:00:25]} 53. c7 {[%emt 0:01:01]} Nc2 {[%emt 0:00:19]} 54. c8=Q {[%emt 0:01:24]} a1=Q+ {[%emt 0:00:30]} 55. Kxb3 {[%emt 0:00:00]} Nd4+ {[%emt 0:00:23]} 56. Kc4 {[%emt 0:00:00]} Qa2+ {[%emt 0:00:45]} 57. Kc5 {[%emt 0:00:48]} Nb3+ {[%emt 0:00:33]} 58. Kb6 {[%emt 0:00:41]} 1-0

[Event "TUR-chT Superleague 2018"]
[Site "Ankara"]
[Date "2018.07.28"]
[Round "4"]
[White "Yurtseven, Melih"]
[Black "Dastan, Muhammed Batuhan"]
[Result "0-1"]
[ECO "A07"]
[WhiteElo "2404"]
[BlackElo "2552"]
[Annotator "ChessBase"]
[PlyCount "80"]
[EventDate "2018.07.25"]
[EventType "team-tourn"]
[EventCountry "TUR"]
[SourceTitle "playchess.com"]
[Source "ChessBase"]
[SourceQuality "1"]
[TimeControl "40/5400+30:1800+30"]

1. Nf3 {[%emt 0:00:30]} d5 {[%emt 0:01:00]} 2. g3 {[%emt 0:00:30]} c6 {[%emt 0:00:30]} 3. Bg2 {[%emt 0:00:00]} Bg4 {[%emt 0:00:00]} 4. Ne5 {[%emt 0:05:00]} Bf5 {[%emt 0:01:00]} 5. c4 {[%emt 0:03:30]} e6 {[%emt 0:02:30]} 6. cxd5 {[%emt 0:01:30]} exd5 {[%emt 0:00:30]} 7. d4 {[%emt 0:00:30]} Nf6 {[%emt 0:03:30]} 8. Nc3 {[%emt 0:00:30]} Nbd7 {[%emt 0:09:30]} 9. O-O {[%emt 0:03:30]} Be7 {[%emt 0:02:30]} 10. Nxd7 {[%emt 0:05:30]} Qxd7 {[%emt 0:01:30]} 11. Bg5 {[%emt 0:00:30]} h5 {[%emt 0:20:30]} 12. Re1 {[%emt 0:02:30]} Ne4 {[%emt 0:23:30]} 13. Nxe4 {[%emt 0:24:30]} Bxe4 {[%emt 0:02:30]} 14. Bxe4 {[%emt 0:02:30]} dxe4 {[%emt 0:01:30]} 15. Bxe7 {[%emt 0:00:30]} Qxe7 {[%emt 0:00:00]} 16. e3 {[%emt 0:00:30]} O-O-O {[%emt 0:02:00]} 17. b4 {[%emt 0:01:30]} Rd5 {[%emt 0:01:30]} 18. Qa4 {[%emt 0:16:30]} Kb8 {[%emt 0:01:30]} 19. Rac1 {[%emt 0:00:30]} h4 {[%emt 0:00:30]} 20. Rc5 {[%emt 0:00:30]} hxg3 {[%emt 0:06:58]} 21. fxg3 {[%emt 0:00:30]} Rdh5 {[%emt 0:00:00]} 22. Rxh5 {[%emt 0:05:30]} Rxh5 {[%emt 0:00:10]} 23. a3 {[%emt 0:00:00]} Qe6 {[%emt 0:00:53]} 24. Qc2 {[%emt 0:00:00]} Rb5 {[%emt 0:00:52]} 25. Rf1 {[%emt 0:05:55]} f5 {[%emt 0:02:36]} 26. Qf2 {[%emt 0:00:58]} a5 {[%emt 0:02:13]} 27. Kg2 {[%emt 0:07:39]} Qb3 {[%emt 0:02:24]} 28. Ra1 {[%emt 0:03:52]} Ka7 {[%emt 0:01:55]} 29. Kh3 {[%emt 0:00:51]} g5 {[%emt 0:01:32]} 30. a4 {[%emt 0:02:11]} g4+ {[%emt 0:01:13]} 31. Kh4 {[%emt 0:02:19]} Qe6 {[%emt 0:00:59]} 32. Qf4 {[%emt 0:00:01]} Rd5 {[%emt 0:01:50]} 33. Rf1 {[%emt 0:01:41]} axb4 {[%emt 0:01:43]} 34. h3 {[%emt 0:00:00]} Qf6+ {[%emt 0:02:56]} 35. Qg5 {[%emt 0:01:20]} Qh8+ {[%emt 0:00:30]} 36. Qh5 {[%emt 0:00:30]} Qf6+ {[%emt 0:00:00]} 37. Qg5 {[%emt 0:00:00]} Qh8+ {[%emt 0:00:00]} 38. Qh5 {[%emt 0:00:02]} Qxh5+ {[%emt 0:00:03]} 39. Kxh5 {[%emt 0:00:30]} gxh3 {[%emt 0:00:30]} 40. Kh4 {[%emt 0:00:00]} Kb6 {[%emt 0:01:13]} 0-1

[Event "TUR-chT Superleague 2018"]
[Site "Ankara"]
[Date "2018.07.28"]
[Round "4"]
[White "Can, Isik"]
[Black "Shevchenko, Kirill"]
[Result "0-1"]
[ECO "B94"]
[WhiteElo "2385"]
[BlackElo "2554"]
[Annotator "ChessBase"]
[PlyCount "102"]
[EventDate "2018.07.25"]
[EventType "team-tourn"]
[EventCountry "TUR"]
[SourceTitle "playchess.com"]
[Source "ChessBase"]
[SourceQuality "1"]
[TimeControl "40/5400+30:1800+30"]

1. e4 {[%emt 0:00:30]} c5 {[%emt 0:01:00]} 2. Nf3 {[%emt 0:00:30]} d6 {[%emt 0:00:30]} 3. d4 {[%emt 0:00:30]} cxd4 {[%emt 0:00:30]} 4. Nxd4 {[%emt 0:00:30]} Nf6 {[%emt 0:00:30]} 5. Nc3 {[%emt 0:00:30]} a6 {[%emt 0:00:30]} 6. Bg5 {[%emt 0:00:00]} Nbd7 {[%emt 0:00:00]} 7. Qe2 {[%emt 0:00:00]} h6 {[%emt 0:01:00]} 8. Bh4 {[%emt 0:00:00]} g6 {[%emt 0:00:30]} 9. f4 {[%emt 0:00:00]} e5 {[%emt 0:00:30]} 10. fxe5 {[%emt 0:00:00]} dxe5 {[%emt 0:00:30]} 11. O-O-O {[%emt 0:00:00]} Qc7 {[%emt 0:00:30]} 12. Nb3 {[%emt 0:00:00]} b5 {[%emt 0:01:30]} 13. Qf3 {[%emt 0:00:00]} Bg7 {[%emt 0:10:30]} 14. Bd3 {[%emt 0:00:00]} O-O {[%emt 0:11:30]} 15. Rhf1 {[%emt 0:01:00]} Bb7 {[%emt 0:07:30]} 16. a3 {[%emt 0:00:30]} Rac8 {[%emt 0:06:30]} 17. Be1 {[%emt 0:00:00]} Nb6 {[%emt 0:07:30]} 18. Kb1 {[%emt 0:20:00]} Nc4 {[%emt 0:05:30]} 19. g4 {[%emt 0:08:30]} Rfd8 {[%emt 0:07:30]} 20. h4 {[%emt 0:05:30]} h5 {[%emt 0:03:30]} 21. gxh5 {[%emt 0:14:30]} Nxh5 {[%emt 0:00:30]} 22. Nc5 {[%emt 0:13:30]} Nf4 {[%emt 0:07:30]} 23. Nxb7 {[%emt 0:03:30]} Qxb7 {[%emt 0:00:00]} 24. Bxc4 {[%emt 0:01:30]} Rxd1+ {[%emt 0:07:00]} 25. Qxd1 {[%emt 0:03:30]} Rxc4 {[%emt 0:05:37]} 26. Qd8+ {[%emt 0:08:48]} Kh7 {[%emt 0:00:56]} 27. h5 {[%emt 0:04:33]} gxh5 {[%emt 0:05:32]} 28. Rg1 {[%emt 0:05:27]} Qc6 {[%emt 0:06:00]} 29. Qh4 {[%emt 0:07:00]} Rd4 {[%emt 0:03:48]} 30. Bg3 {[%emt 0:01:42]} Qh6 {[%emt 0:00:26]} 31. Bxf4 {[%emt 0:02:23]} exf4 {[%emt 0:00:03]} 32. Qh3 {[%emt 0:00:43]} Rd6 {[%emt 0:00:43]} 33. Nd5 {[%emt 0:01:09]} Rg6 {[%emt 0:00:25]} 34. Qf5 {[%emt 0:00:00]} f3 {[%emt 0:00:57]} 35. Rf1 {[%emt 0:00:28]} Qg5 {[%emt 0:00:25]} 36. Qxf7 {[%emt 0:00:41]} Qe5 {[%emt 0:00:17]} 37. Nc3 {[%emt 0:00:29]} Rf6 {[%emt 0:00:15]} 38. Qa7 {[%emt 0:00:29]} Qg3 {[%emt 0:01:02]} 39. Rg1 {[%emt 0:00:30]} h4 {[%emt 0:00:31]} 40. Nd5 {[%emt 0:00:00]} Rg6 {[%emt 0:01:03]} 41. Rh1 {[%emt 0:25:12]} f2 {[%emt 0:07:30]} 42. Ka2 {[%emt 0:02:41]} h3 {[%emt 0:06:28]} 43. Qd7 {[%emt 0:02:13]} h2 {[%emt 0:01:23]} 44. Ne7 {[%emt 0:01:17]} Qe5 {[%emt 0:03:52]} 45. c3 {[%emt 0:00:20]} Rh6 {[%emt 0:00:35]} 46. Nf5 {[%emt 0:01:50]} f1=Q {[%emt 0:01:29]} 47. Rxf1 {[%emt 0:00:09]} h1=Q {[%emt 0:00:00]} 48. Nxg7 {[%emt 0:00:38]} Qxf1 {[%emt 0:01:31]} 49. Nf5+ {[%emt 0:00:52]} Kg6 {[%emt 0:00:26]} 50. Qc6+ {[%emt 0:00:06]} Qf6 {[%emt 0:00:12]} 51. Qe8+ {[%emt 0:00:00]} Qf7+ {[%emt 0:00:04]} 0-1

[Event "TUR-chT Superleague 2018"]
[Site "Ankara"]
[Date "2018.07.28"]
[Round "4"]
[White "Kerigan, Demre"]
[Black "Zeydan, Salih"]
[Result "0-1"]
[ECO "A07"]
[WhiteElo "2366"]
[BlackElo "2061"]
[Annotator "NA"]
[PlyCount "60"]
[EventDate "2018.07.25"]
[EventType "team-tourn"]
[EventCountry "TUR"]
[SourceTitle "playchess.com"]
[Source "ChessBase"]
[SourceQuality "1"]
[TimeControl "40/5400+30:1800+30"]

1. g3 {[%emt 0:00:30]} d5 {[%emt 0:02:00]} 2. Bg2 {[%emt 0:00:00]} Nf6 {[%emt 0:00:00]} 3. d3 {[%emt 0:00:00]} g6 {[%emt 0:05:00]} 4. Nf3 {[%emt 0:01:30]} Bg7 {[%emt 0:00:30]} 5. O-O {[%emt 0:00:30]} O-O {[%emt 0:00:30]} 6. c3 {[%emt 0:01:30]} Nc6 {[%emt 0:08:30]} 7. Qc2 {[%emt 0:05:30]} e5 {[%emt 0:03:30]} 8. e4 {[%emt 0:02:30]} h6 {[%emt 0:02:30]} 9. b4 {[%emt 0:00:30]} a6 {[%emt 0:03:30]} 10. Bb2 {[%emt 0:05:30]} Be6 {[%emt 0:07:30]} 11. Nbd2 {[%emt 0:03:30]} dxe4 {[%emt 0:04:30]} 12. dxe4 {[%emt 0:02:30]} Nd7 {[%emt 0:05:30]} 13. a3 {[%emt 0:02:30]} Qe7 {[%emt 0:08:30]} 14. Rfe1 {[%emt 0:07:30]} Nb6 {[%emt 0:11:30]} 15. c4 {[%emt 0:11:30]} a5 {[%emt 0:05:30]} 16. c5 {[%emt 0:10:30]} axb4 {[%emt 0:02:30]} 17. cxb6 {[%emt 0:02:30]} bxa3 {[%emt 0:01:30]} 18. Bc1 {[%emt 0:15:30]} cxb6 {[%emt 0:06:30]} 19. Nb1 {[%emt 0:12:23]} a2 {[%emt 0:06:27]} 20. Nc3 {[%emt 0:01:36]} Nd4 {[%emt 0:05:26]} 21. Qb2 {[%emt 0:01:57]} Rfc8 {[%emt 0:01:38]} 22. Be3 {[%emt 0:09:02]} Qa3 {[%emt 0:04:12]} 23. Qxa3 {[%emt 0:00:34]} Rxa3 {[%emt 0:00:03]} 24. Bxd4 {[%emt 0:00:01]} exd4 {[%emt 0:01:00]} 25. Nb5 {[%emt 0:00:03]} Rxf3 {[%emt 0:02:37]} 26. Bxf3 {[%emt 0:00:30]} d3 {[%emt 0:00:00]} 27. Rad1 {[%emt 0:01:52]} Bb2 {[%emt 0:02:32]} 28. Kg2 {[%emt 0:01:08]} Rc2 {[%emt 0:00:33]} 29. Ra1 {[%emt 0:00:41]} d2 {[%emt 0:00:39]} 30. Red1 {[%emt 0:00:19]} Bxa1 {[%emt 0:00:00]} 0-1